lending/lending_fUSD_20240621
["ID","MTS","AMOUNT","RATE_DAILY","PERIOD"]
[330041371,1718958633327,-7554.11,0.00021724,2]
[330041372,1718958633342,-164.74,0.00021774,2]
[330041373,1718958633351,-360.0,0.00021881,2]
[330041374,1718958633360,-154.55,0.00021918,2]
[330041375,1718958633369,-2000.0,0.00021918,2]
[330041376,1718958633378,-233.38,0.00021918,2]
[330041377,1718958633388,-169.81,0.00021951,2]
[330041378,1718958633397,-2490.51964507,0.00022011,2]
[330041380,1718958633407,-1000.0,0.00022012,2]
[330041382,1718958633416,-159.67442732,0.00022033,2]
[330041384,1718958633426,-169.68094133,0.00022081,2]
[330041386,1718958633435,-1000.0,0.0002209,2]
[330041388,1718958633446,-1026.67841696,0.0002209,2]
[330041390,1718958633455,-290.0,0.00022091,2]
[330041392,1718958633465,-5164.0,0.00022091,2]
[330041394,1718958633474,-1234.28,0.00022091,2]
[330041396,1718958633484,-38118.0,0.00022091,2]
[330041398,1718958633493,-154.49223323,0.00022106,2]
[330041400,1718958633502,-150.74997781,0.00022132,2]
[330041402,1718958633512,-150.74997781,0.00022165,2]
[330041404,1718958633522,-154.59692945,0.00022224,2]
[330041407,1718958633535,-258.3583,0.0002227,2]
[330041409,1718958633545,-1218.9481,0.0002227,2]
[330041411,1718958633561,-100000.0,0.0002237,2]
[330041413,1718958633570,-150.74997781,0.00022397,2]
[330041414,1718958633581,-154.59692945,0.00022449,2]
[330041417,1718958633593,-153.95990554,0.00022452,2]
[330041419,1718958633604,-151.0,0.00022456,4]
[330041421,1718958633614,-180.0,0.00022462,2]
[330041423,1718958633625,-1373.26591712,0.00022469,2]
[330041425,1718958633635,-154.59692945,0.00022479,2]
[330041427,1718958633645,-153.95990554,0.00022495,2]
[330041429,1718958633655,-413.92057913,0.00022495,2]
[330041431,1718958633665,-516.69212891,0.0002253,2]
[330041433,1718958633675,-154.59692945,0.00022547,2]
[330041435,1718958633685,-154.59692945,0.0002257,2]
[330041436,1718958633699,-167.0,0.00022586,2]
[330041438,1718958633709,-154.59692945,0.00022628,2]
[330041440,1718958633720,-161.66000186,0.00022662,2]
[330041443,1718958633730,-154.59692945,0.000227,2]
[330041445,1718958633739,-1018.0,0.000227,2]
[330041446,1718958633748,-150.32777,0.0002276,2]
[330041449,1718958633758,-2500.0,0.0002279,2]
[330041450,1718958633768,-177.92943971,0.0002279,2]
[330041451,1718958633778,-180.58081962,0.0002279,2]
[330041452,1718958633788,-8381.809327,0.000228,2]
[330041453,1718958633797,-180.58081956,0.00022804,2]
[330041454,1718958633807,-1000.0,0.00022806,2]
[330041455,1718958633816,-180.58081956,0.00022819,2]
[330041456,1718958633826,-180.58081956,0.00022833,2]
[330041457,1718958633838,-180.58081956,0.00022847,2]
[330041458,1718958633848,-154.59692945,0.00022848,2]
[330041459,1718958633858,-180.58081956,0.00022861,2]
[330041460,1718958633867,-180.58081956,0.00022876,2]
[330041461,1718958633878,-136946.1037,0.0002289,2]
[330041462,1718958633888,-39404.9702,0.0002289,2]
[330041463,1718958633898,-500.0,0.0002289,2]
[330041464,1718958633908,-1000.0,0.0002289,2]
[330041465,1718958633917,-300.0,0.0002289,2]
[330041466,1718958633927,-4529.94827766,0.0002289,2]
[330041467,1718958633936,-160.13713916,0.0002289,2]
[330041468,1718958633946,-180.58081956,0.0002289,2]
[330041469,1718958633956,-10000.0,0.0002289,2]
[330041470,1718958633966,-154.59692945,0.00022929,2]
[330041471,1718958633977,-929.75333317,0.00022973,2]
[330041472,1718958633987,-282.08179377,0.00022985,2]
[330041473,1718958633997,-366.69879568,0.00022985,2]
[330041474,1718958634006,-209.23301289,0.00022989,2]
[330041475,1718958634015,-2000.0,0.00022989,2]
[330041476,1718958634025,-2000.0,0.00022989,2]
[330041477,1718958634035,-2000.0,0.00022989,2]
[330041478,1718958634045,-2000.0,0.00022989,2]
[330041479,1718958634056,-2000.0,0.00022989,2]
[330041480,1718958634066,-2106.2433,0.00022989,2]
[330041481,1718958634076,-5907.85263176,0.00022989,2]
[330041482,1718958634087,-2000.0,0.00022989,2]
[330041483,1718958634097,-2219.44,0.00022989,7]
[330041484,1718958634108,-518.0,0.0002299,2]
[330041485,1718958634118,-5754.27242258,0.0002299,2]
[330041486,1718958634128,-523475.2400273,0.0002299,5]
[330041487,1718958634143,-755805.28913058,0.0002299,5]
[330041488,1718958634184,-415.49405944,0.0002299,5]
[330041678,1718958640289,-1373.26591712,0.00022469,2]
[330041680,1718958640300,-1020.01856937,0.00022989,2]
[330041682,1718958640310,-628.59302015,0.0002299,5]
[330041712,1718958640630,-259.582,0.00022091,2]
[330041714,1718958640640,-852.901,0.0002299,5]
[330041716,1718958640652,-740.10201548,0.0002299,5]
[330041718,1718958640665,-502.61464798,0.0002299,5]
[330041720,1718958640677,-64554.47529476,0.0002299,5]
[330042022,1718958646500,-6400.25228493,0.0002299,5]
[330042023,1718958646511,-6504.56252221,0.0002299,5]
[330042024,1718958646522,-1675.69422699,0.0002299,5]
[330042025,1718958646533,-68969.88186716,0.0002299,5]
[330042026,1718958646547,-1749.91574108,0.0002299,5]
[330042039,1718958743138,607.0,0.00017,30]
[330042041,1718958938834,361.0449962,0.00015,14]
[330042044,1718959032840,203.68,0.00010959,2]
[330042045,1718959043505,169.73,0.00010959,2]
[330042046,1718959054007,848.67,0.00010959,2]
[330042048,1718959151100,180.94750062,0.00010959,2]
[330042050,1718959249585,180.94750062,0.00010959,2]
[330042051,1718959324585,243.53389165,0.00010959,2]
[330042053,1718959444752,500.0,0.00025,60]
[330042054,1718959495059,1082.0,0.00025,60]
[330042057,1718959583995,-600.0,0.00012,2]
[330042058,1718959584019,-6983.29161471,0.0001218,2]
[330042059,1718959584041,-177.9294397,0.0001228,2]
[330042060,1718959584062,-18714.77894559,0.000123,2]
[330042061,1718959588329,-20000.0,0.000123,2]
[330042062,1718959589494,-20000.0,0.000123,2]
[330042063,1718959590663,-20000.0,0.000123,2]
[330042065,1718959608583,520.26,0.00010959,2]
[330042067,1718959620950,-267.73995674,0.0001208,2]
[330042068,1718959620983,-19732.26004326,0.000123,2]
[330042069,1718959621448,-20000.0,0.000123,2]
[330042070,1718959621666,-20000.0,0.000123,2]
[330042071,1718959622295,-20000.0,0.000123,2]
[330042072,1718959623107,-20000.0,0.000123,2]
[330042073,1718959625390,-20000.0,0.000123,2]
[330042144,1718959833261,-158.06324404,0.00012199,2]
[330042145,1718959833271,-150.0,0.00012299,2]
[330042146,1718959833280,-6.97675596,0.00012299,2]
[330042147,1718959833298,-293.02324404,0.00012299,2]
[330042148,1718959833308,-435.89793028,0.000123,2]
[330042149,1718959833319,-688.45473422,0.000123,2]
[330042150,1718959833429,-4255.0,0.000123,2]
[330042151,1718959833440,-674.0,0.000123,2]
[330042152,1718959833452,-20106.10361351,0.000123,2]
[330042153,1718959833464,-2899.64000025,0.000123,2]
[330042154,1718959833503,-836.74867698,0.000123,2]
[330042155,1718959833515,-67528.49279998,0.000123,2]
[330042156,1718959833526,-1541.396652,0.000123,2]
[330042157,1718959833541,-271.2999999,0.000123,2]
[330042158,1718959833628,-435.0,0.000123,2]
[330042159,1718959833639,-264.78577028,0.000123,2]
[330042160,1718959833650,-600.0,0.000123,2]
[330042161,1718959833661,-2565.0625,0.000123,2]
[330042162,1718959833673,-7215.10767295,0.000123,2]
[330042163,1718959833684,-772.63417301,0.000123,2]
[330042211,1718959839266,-293.32400012,0.000123,2]
[330042213,1718959839278,-12837.0242,0.000123,2]
[330042216,1718959839293,-1704.60664563,0.000123,2]
[330042218,1718959839304,-2254.37047874,0.000123,2]
[330042222,1718959839338,-10995.6244994,0.000123,2]
[330042224,1718959839350,-15480.87706287,0.000123,2]
[330042227,1718959839361,-515.29338044,0.000123,2]
[330042235,1718959839433,-641.94132,0.000123,2]
[330042237,1718959839445,-400132.29634577,0.000123,2]
[330042239,1718959839455,-2490.51964507,0.00012543,2]
[330042241,1718959839465,-333.26387152,0.00012653,2]
[330042243,1718959839475,-1994.58356352,0.0001298,2]
[330042245,1718959839485,-420.0,0.00013497,2]
[330042247,1718959839495,-210.0,0.00013529,2]
[330042250,1718959839505,-180.0,0.00014813,2]
[330042253,1718959839515,-153.31,0.00016344,2]
[330042256,1718959839526,-258.39,0.00016359,2]
[330042260,1718959839538,-150.0,0.00016795,2]
[330042262,1718959839549,-201.65,0.00016834,2]
[330042264,1718959839559,-462.51,0.0001726,2]
[330042266,1718959839569,-150.99,0.00017534,2]
[330042268,1718959839579,-300.0,0.0001756,2]
[330042270,1718959839589,-573.74,0.00018587,2]
[330042272,1718959839600,-3033.674,0.00019319,2]
[330042274,1718959839609,-1957.4349024,0.0002,2]
[330042276,1718959839619,-250.0,0.00020346,2]
[330042278,1718959839628,-187.56,0.00020401,2]
[330042279,1718959839637,-16270.85,0.00020449,2]
[330042282,1718959839647,-162.04,0.00020486,2]
[330042284,1718959839656,-516.57,0.00020543,2]
[330042286,1718959839666,-182.83,0.0002059,2]
[330042288,1718959839676,-250.0,0.0002066,2]
[330042290,1718959839686,-1000.0,0.00020733,2]
[330042292,1718959839696,-268.08,0.0002075,2]
[330042293,1718959839706,-376.75,0.00020805,30]
[330042296,1718959839716,-258.77,0.00020805,2]
[330042298,1718959839731,-181.81,0.00020815,2]
[330042300,1718959839741,-845.18,0.00020823,2]
[330042302,1718959839750,-573.74,0.00020851,2]
[330042304,1718959839760,-1250.0,0.00021,2]
[330042306,1718959839771,-169.81,0.00021084,2]
[330042308,1718959839785,-167.0,0.00021287,2]
[330042310,1718959839798,-194.48,0.00021918,2]
[330042312,1718959839808,-154.55,0.00021918,2]
[330042314,1718959839818,-6000.0,0.00022,3]
[330042316,1718959839828,-369.86986197,0.00022,2]
[330042318,1718959839837,-162.2473133,0.00022008,2]
[330042320,1718959839847,-161.66000186,0.00022021,2]
[330042322,1718959839856,-245.79740235,0.00022071,2]
[330042324,1718959839866,-3923.89615025,0.00022081,2]
[330042326,1718959839876,-154.59692945,0.00022151,2]
[330042328,1718959839886,-161.66000186,0.00022165,2]
[330042330,1718959839895,-7462.7,0.00022235,2]
[330042332,1718959839905,-154.59692945,0.00022259,2]
[330042334,1718959839916,-5020.5515,0.0002227,2]
[330042336,1718959839926,-30513.2802,0.0002227,2]
[330042338,1718959839936,-30506.94772976,0.0002227,2]
[330042340,1718959839951,-344.64227953,0.0002227,2]
[330042342,1718959839964,-3375.09589071,0.0002227,2]
[330042344,1718959839974,-154.49223323,0.00022276,2]
[330042346,1718959839984,-180.0,0.00022322,2]
[330042348,1718959839995,-188.05452918,0.00022342,2]
[330042350,1718959840005,-135.58091199,0.00022414,2]
[330042352,1718959840018,-19.01601746,0.00022414,2]
[330042354,1718959840028,-150.74997781,0.00022417,2]
[330042356,1718959840044,-150.62551864,0.00022427,2]
[330042358,1718959840055,-97.4533581,0.00022427,2]
[330042490,1718959841375,-297.21546747,0.00012138,2]
[330042507,1718959841522,-11.12505939,0.00012138,2]
[330042509,1718959841537,-864.64541414,0.00012138,2]
[330042511,1718959841546,-720.763228,0.00019121,2]
[330042513,1718959841556,-720.763228,0.0001936,2]
[330042515,1718959841565,-720.763228,0.00019599,2]
[330042517,1718959841574,-720.763228,0.00019838,2]
[330042519,1718959841583,-720.763228,0.00020077,2]
[330042521,1718959841593,-64.7939552,0.00022427,2]
[330042523,1718959841602,-167.0,0.00022458,2]
[330042525,1718959841611,-151.0,0.00022466,4]
[330042527,1718959841620,-989.91792809,0.00022492,2]
[330042529,1718959841629,-155.08643874,0.00022499,2]
[330042531,1718959841639,-514.03340604,0.0002253,2]
[330042533,1718959841648,-154.59692945,0.0002257,2]
[330042535,1718959841658,-154.68938118,0.00022646,2]
[330042538,1718959841679,-500.0,0.000227,2]
[330042540,1718959841689,-209.88552387,0.00022706,2]
[330042542,1718959841698,-155.74265188,0.00022706,2]
[330042545,1718959841708,-167.0,0.00022707,2]
[330042547,1718959841718,-156.21854213,0.00022759,2]
[330042549,1718959841728,-1992.07746,0.0002276,2]
[330042551,1718959841738,-154.59692945,0.00022796,2]
[330042553,1718959841747,-329.78934151,0.00022805,2]
[330042555,1718959841758,-1000.0,0.00022806,2]
[330042557,1718959841767,-500.0,0.00022806,2]
[330042559,1718959841778,-154.49223323,0.00022809,2]
[330042561,1718959841795,-175.39668906,0.0002289,2]
[330042563,1718959841804,-4206.1197078,0.0002289,2]
[330042565,1718959841814,-1528.47049274,0.0002289,2]
[330042568,1718959841823,-150.0,0.000229,11]
[330042570,1718959841832,-150.74997781,0.00022914,2]
[330042572,1718959841842,-163.86158843,0.00022934,2]
[330042574,1718959841851,-307.0,0.0002296,30]
[330042576,1718959841861,-307.0,0.0002296,30]
[330042578,1718959841870,-150.5,0.0002296,30]
[330042580,1718959841879,-153.9,0.0002297,30]
[330042582,1718959841889,-307.0,0.0002297,30]
[330042584,1718959841899,-307.0,0.0002297,30]
[330042586,1718959841908,-307.0,0.0002297,30]
[330042588,1718959841917,-309.0,0.0002297,30]
[330042590,1718959841928,-150.5,0.0002297,30]
[330042592,1718959841938,-150.5,0.0002298,30]
[330042594,1718959841950,-307.0,0.0002298,30]
[330042596,1718959841962,-307.0,0.0002298,30]
[330042598,1718959841972,-307.0,0.0002298,30]
[330042600,1718959841982,-307.0,0.0002298,30]
[330042602,1718959841991,-150.5,0.0002298,30]
[330042604,1718959842001,-943.59569038,0.00022985,2]
[330042607,1718959842012,-1054.49261532,0.00022985,2]
[330042609,1718959842023,-2000.0,0.00022989,2]
[330042611,1718959842038,-2000.0,0.00022989,2]
[330042613,1718959842049,-2000.0,0.00022989,2]
[330042615,1718959842058,-519.0,0.0002299,2]
[330042617,1718959842068,-4603.53302351,0.0002299,2]
[330042619,1718959842078,-291731.27171704,0.0002299,5]
[330042621,1718959842091,-64052.1465704,0.0002299,5]
[330042626,1718959842119,-640.13,0.0002299,5]
[330042628,1718959842130,-6418.29260785,0.0002299,5]
[330042630,1718959842142,-271.81014858,0.0002299,5]
[330042632,1718959842153,-87605.1086311,0.0002299,5]
[330042779,1718959843459,-640.64,0.00016795,2]
[330042811,1718959843588,-1900.34789056,0.00016795,2]
[330042814,1718959843600,-560.79210944,0.00016795,2]
[330042818,1718959843610,-103.11955841,0.0002299,5]
[330042870,1718959843858,-6398.53682,0.0002299,5]
[330042873,1718959843870,-826.25901472,0.0002299,5]
[330043106,1718959846598,-182.65367238,0.00027832,30]
[330043112,1718959846636,-1000.0,0.00027832,30]
[330043116,1718959846671,-347.3676486,0.00027832,60]
[330043118,1718959846706,-1000.0,0.00027832,60]
[330043120,1718959846742,-1000.0,0.00027832,60]
[330043122,1718959846779,-1000.0,0.00027832,60]
[330043123,1718959846817,-1000.0,0.00027832,60]
[330043124,1718959846854,-1000.0,0.00027832,30]
[330043125,1718959846888,-1000.0,0.00027832,30]
[330043126,1718959846923,-451.92602073,0.00027832,30]
[330043127,1718959846962,-1000.0,0.00027832,30]
[330043128,1718959846998,-1000.0,0.00027832,30]
[330043129,1718959847033,-1000.0,0.00027832,30]
[330043130,1718959847070,-1000.0,0.00027832,30]
[330043131,1718959847102,-1000.0,0.00027832,30]
[330043132,1718959847136,-1000.0,0.00027832,30]
[330043133,1718959847168,-1000.0,0.00027832,30]
[330043134,1718959847201,-537.9504471,0.00027832,30]
[330043136,1718959847241,-1000.0,0.00027832,30]
[330043141,1718959847281,-1000.0,0.00027832,30]
[330043146,1718959847327,-1000.0,0.00027832,30]
[330043151,1718959847367,-1000.0,0.00027832,60]
[330043157,1718959847405,-1000.0,0.00027832,30]
[330043161,1718959847442,-1000.0,0.00027832,30]
[330043163,1718959847477,-1000.0,0.00027832,60]
[330043168,1718959847515,-1000.0,0.00027832,30]
[330043169,1718959847552,-1000.0,0.00027832,60]
[330043170,1718959847585,-1000.0,0.00027832,30]
[330043171,1718959847618,-1000.0,0.00027832,60]
[330043172,1718959847653,-1000.0,0.00027832,30]
[330043173,1718959847687,-1000.0,0.00027832,30]
[330043174,1718959847720,-251.19588002,0.00027832,30]
[330043175,1718959847753,-482.24194483,0.00027832,30]
[330043176,1718959847788,-360.41577623,0.00027832,30]
[330043177,1718959847825,-833.02964023,0.00027832,30]
[330043178,1718959847860,-1570.75358486,0.00027832,30]
[330043179,1718959847894,-697.57288273,0.00027832,30]
[330043180,1718959847930,-580.27917183,0.00027832,30]
[330043181,1718959847971,-306.70470669,0.00027832,30]
[330043182,1718959848005,-211.90734557,0.00027832,120]
[330043183,1718959848044,-815.95348931,0.00027832,30]
[330043184,1718959848079,-823.75792211,0.00027832,30]
[330043185,1718959848112,-658.68091128,0.00027832,30]
[330043186,1718959848145,-197.10385541,0.00027832,30]
[330043187,1718959848180,-916.66423005,0.00027832,30]
[330043188,1718959848214,-195.57597874,0.00027832,30]
[330043189,1718959848247,-332.51888504,0.00027832,30]
[330043190,1718959848282,-218.69554292,0.00027832,120]
[330043191,1718959848319,-500.0,0.00027832,30]
[330043192,1718959848352,-283.52321951,0.00027832,120]
[330043193,1718959848384,-271.00842335,0.00027832,120]
[330043194,1718959848417,-279.83791392,0.00027832,120]
[330043195,1718959848449,-843.17664883,0.00027832,30]
[330043196,1718959848482,-192.72908103,0.00027832,30]
[330043197,1718959848515,-633.04532067,0.00027832,30]
[330043198,1718959848548,-1218.17790511,0.00027832,30]
[330043199,1718959848580,-252.43676491,0.00027832,30]
[330043200,1718959848611,-1782.31053549,0.00027832,120]
[330043201,1718959848647,-1091.34690661,0.00027832,30]
[330043202,1718959848681,-285.74701211,0.00027832,30]
[330043203,1718959848715,-335.64978841,0.00027832,120]
[330043204,1718959848748,-266.0,0.00027832,30]
[330043205,1718959848784,-50000.0,0.00027832,30]
[330043206,1718959848819,-50000.0,0.00027832,31]
[330043207,1718959848855,-50000.0,0.00027832,32]
[330043208,1718959848892,-50000.0,0.00027832,33]
[330043209,1718959848926,-773.52005931,0.00027832,120]
[330043210,1718959848969,-577.0,0.00027832,120]
[330043211,1718959849008,-26175.85921146,0.00027832,30]
[330043212,1718959849048,-5400.0,0.00027832,30]
[330043213,1718959849082,-197.43933562,0.00027832,30]
[330043214,1718959849115,-2405.0569,0.00027832,30]
[330043215,1718959849149,-193.42762821,0.00027832,90]
[330043216,1718959849183,-150.13381272,0.00027832,120]
[330043217,1718959849216,-244.49472763,0.00027832,120]
[330043218,1718959849252,-2116.00417559,0.00027832,120]
[330043219,1718959849285,-366.8329479,0.00027832,120]
[330043220,1718959849318,-724.16641649,0.00027832,120]
[330043221,1718959849352,-1400.92223182,0.00027832,30]
[330043222,1718959849383,-549.13625291,0.00027832,120]
[330043223,1718959849416,-583.10965614,0.00027832,30]
[330043224,1718959849450,-551.0,0.00027832,120]
[330043225,1718959849488,-427.77538661,0.00027832,30]
[330043226,1718959849524,-4500.0,0.00027832,120]
[330043227,1718959849562,-160.12483413,0.00027832,30]
[330043228,1718959849599,-687.79840471,0.00027832,30]
[330043229,1718959849637,-6267.39802542,0.00027832,120]
[330043230,1718959849676,-6151.38083558,0.00027832,120]
[330043231,1718959849712,-943.9545856,0.00027832,120]
[330043232,1718959849747,-257.8631284,0.00027832,30]
[330043233,1718959849782,-1000.0,0.00027832,30]
[330043234,1718959849822,-1000.0,0.00027832,30]
[330043235,1718959849856,-1000.0,0.00027832,30]
[330043236,1718959849890,-1000.0,0.00027832,30]
[330043237,1718959849928,-1000.0,0.00027832,30]
[330043238,1718959850195,-1000.0,0.00027832,30]
[330043239,1718959850227,-1000.0,0.00027832,30]
[330043240,1718959850259,-1000.0,0.00027832,30]
[330043241,1718959850295,-1000.0,0.00027832,30]
[330043242,1718959850327,-1000.0,0.00027832,30]
[330043243,1718959850362,-1000.0,0.00027832,30]
[330043244,1718959850397,-1000.0,0.00027832,30]
[330043245,1718959850430,-1000.0,0.00027832,30]
[330043246,1718959850464,-1000.0,0.00027832,30]
[330043247,1718959850497,-1000.0,0.00027832,30]
[330043248,1718959850530,-1000.0,0.00027832,30]
[330043249,1718959850566,-1000.0,0.00027832,30]
[330043250,1718959850600,-1000.0,0.00027832,30]
[330043251,1718959850633,-1000.0,0.00027832,30]
[330043252,1718959850666,-1000.0,0.00027832,30]
[330043253,1718959850700,-1000.0,0.00027832,30]
[330043254,1718959850734,-1000.0,0.00027832,30]
[330043255,1718959850768,-1000.0,0.00027832,30]
[330043256,1718959850804,-1000.0,0.00027832,30]
[330043257,1718959850840,-1475.466421,0.00027832,30]
[330043258,1718959853344,-1272.76352145,0.00012138,2]
[330043259,1718959853355,-11776.34577855,0.00012138,2]
[330043260,1718959853365,-188.05452918,0.00022338,2]
[330043261,1718959853374,-383.65473788,0.00022523,2]
[330043262,1718959853383,-269.04833844,0.00022989,2]
[330043263,1718959853393,-3509.50058443,0.00022989,2]
[330043264,1718959853402,-27343.92733152,0.0002299,5]
[330043265,1718959853437,-322.9200001,0.0002299,5]
[330043266,1718959853448,-643.569288,0.0002299,5]
[330043267,1718959853461,-1279.26,0.0002299,5]
[330043268,1718959853608,-355.86001127,0.0002299,5]
[330043269,1718959853619,-3202.55,0.0002299,5]
[330043270,1718959853631,-760.44,0.0002299,5]
[330043271,1718959853641,-1175.55550787,0.0002299,5]
[330043272,1718959853674,-1036.19740224,0.0002299,5]
[330043304,1718959870700,166.43,0.00027832,30]
[330043334,1718960205869,10000.0,0.00025,60]
[330043336,1718960219407,10000.0,0.00025,60]
[330043337,1718960230354,10000.0,0.00025,60]
[330043338,1718960250228,10000.0,0.00025,60]
[330043339,1718960258335,10000.0,0.00025,60]
[330043340,1718960264607,10000.0,0.00025,60]
[330043341,1718960271472,10000.0,0.00025,60]
[330043342,1718960280196,10000.0,0.00025,60]
[330043343,1718960290533,10000.0,0.00025,60]
[330043344,1718960300795,10000.0,0.00025,60]
[330043345,1718960327366,10000.0,0.00025,60]
[330043346,1718960361635,10000.0,0.00025,60]
[330043347,1718960368475,4108.50588967,0.00025,60]
[330043348,1718960387365,10000.0,0.00025,90]
[330043353,1718960803287,-5891.49411033,0.00025,60]
[330043354,1718960803313,-258.67008,0.00025013,120]
[330043355,1718960803344,-200.0,0.00025613,120]
[330043356,1718960803369,-1000.0,0.00025625,120]
[330043452,1718961034280,-155.0,0.00012979,2]
[330043453,1718961034289,-289.0,0.00013012,2]
[330043454,1718961034298,-162.36595756,0.00013146,2]
[330043455,1718961034311,-164.66,0.0001613,2]
[330043456,1718961034320,-300.0,0.00016934,2]
[330043457,1718961034334,-499.99,0.00017259,2]
[330043458,1718961034344,-150.0,0.00017259,2]
[330043459,1718961034354,-300.0,0.00017259,2]
[330043460,1718961034363,-299.99,0.00017259,4]
[330043461,1718961034374,-917.14,0.0001726,2]
[330043462,1718961034384,-821.11,0.00018496,2]
[330043463,1718961034394,-165.291226,0.00019121,2]
[330043464,1718961034403,-165.291226,0.0001944,2]
[330043465,1718961034415,-11551.85955288,0.00019452,2]
[330043466,1718961034429,-2650.74044712,0.00019452,2]
[330043467,1718961034438,-165.291226,0.00019758,2]
[330043468,1718961034447,-165.291226,0.00020077,2]
[330043469,1718961034456,-181.81,0.00020098,2]
[330043470,1718961034465,-740.76709895,0.00020099,2]
[330043471,1718961034477,-2689.93290105,0.00020099,2]
[330043472,1718961034486,-250.0,0.00020144,2]
[330043473,1718961034495,-2057.76,0.00020146,2]
[330043474,1718961034504,-250.0,0.00020162,2]
[330043475,1718961034513,-182.83,0.00020249,2]
[330043476,1718961034522,-250.0,0.00020267,2]
[330043477,1718961034537,-636.99644248,0.00020306,2]
[330043478,1718961034780,-363.00355752,0.00020306,2]
[330043479,1718961034790,-191.7,0.00020385,2]
[330043480,1718961034799,-359.09,0.00020407,30]
[330043481,1718961034809,-66.78373835,0.0002041,2]
[330043482,1718961034820,-95.25626165,0.0002041,2]
[330043483,1718961034829,-188.12,0.00020463,2]
[330043484,1718961034838,-189.3,0.00020534,2]
[330043485,1718961034847,-3970.84247681,0.00020535,2]
[330043486,1718961034860,-544.0998858,0.00020535,2]
[330043487,1718961034872,-19385.05763739,0.00020535,2]
[330043488,1718961034882,-161.09,0.0002055,2]
[330043489,1718961034891,-161.09,0.00020657,2]
[330043490,1718961034901,-4716.12,0.00020687,2]
[330043491,1718961034911,-821.11,0.0002076,2]
[330043492,1718961034921,-161.09,0.00020764,2]
[330043493,1718961034930,-168.62,0.00020838,2]
[330043494,1718961034940,-163.88,0.00020863,2]
[330043495,1718961034949,-161.09,0.00020871,2]
[330043496,1718961034958,-161.09,0.00020978,2]
[330043497,1718961034968,-161.09,0.00021085,2]
[330043498,1718961034977,-385.91,0.00021151,2]
[330043499,1718961034987,-385.91,0.00021157,2]
[330043500,1718961034996,-385.91,0.00021162,2]
[330043501,1718961035005,-385.91,0.00021168,2]
[330043502,1718961035015,-385.91,0.00021173,2]
[330043503,1718961035025,-385.91,0.00021179,2]
[330043504,1718961035038,-3335.25050694,0.00021183,2]
[330043505,1718961035050,-1720.26617206,0.00021183,2]
[330043506,1718961035061,-533.92481472,0.00021183,2]
[330043507,1718961035071,-385.91,0.00021184,2]
[330043508,1718961035081,-385.91,0.0002119,2]
[330043509,1718961035090,-161.09,0.00021192,2]
[330043510,1718961035100,-385.91,0.00021195,2]
[330043511,1718961035109,-385.91,0.00021201,2]
[330043512,1718961035119,-385.91,0.00021207,2]
[330043513,1718961035129,-385.91,0.00021212,2]
[330043514,1718961035139,-385.91,0.00021218,2]
[330043515,1718961035148,-385.91,0.00021223,2]
[330043516,1718961035158,-385.91,0.00021229,2]
[330043517,1718961035167,-385.91,0.00021234,2]
[330043518,1718961035176,-385.91,0.0002124,2]
[330043519,1718961035186,-385.91,0.00021246,2]
[330043520,1718961035195,-385.91,0.00021251,2]
[330043521,1718961035205,-385.91,0.00021257,2]
[330043522,1718961035215,-161.09,0.00021299,2]
[330043523,1718961035224,-161.09,0.00021407,2]
[330043524,1718961035233,-161.09,0.00021514,2]
[330043525,1718961035243,-1000.0,0.00021527,2]
[330043526,1718961035252,-161.09,0.00021621,2]
[330043527,1718961035262,-461.07,0.00021644,2]
[330043528,1718961035272,-615.52,0.00021644,2]